lending/lending_fUSD_20250406
["ID","MTS","AMOUNT","RATE_DAILY","PERIOD"]
[357254408,1743947471067,-210.12,0.00067739,120]
[357254409,1743947471092,-500.0,0.00067739,120]
[357254410,1743947471118,-500.0,0.00067739,120]
[357254411,1743947471142,-592.66315454,0.00067739,120]
[357254412,1743947471168,-494.7026,0.00068218,120]
[357254413,1743947471193,-1299.53,0.00068218,120]
[357254414,1743947471216,-1000.0,0.00068493,40]
[357254415,1743947471240,-164.1,0.000685,60]
[357254416,1743947471265,-1000.0,0.0006863,40]
[357254417,1743947471289,-1000.0,0.00068767,40]
[357254418,1743947471313,-1000.0,0.00068904,40]
[357254419,1743947471337,-1000.0,0.00069041,40]
[357254420,1743947471362,-210.12,0.00069109,120]
[357254421,1743947471385,-1000.0,0.00069178,40]
[357254422,1743947471409,-1000.0,0.00069315,40]
[357254423,1743947471433,-1000.0,0.00069452,40]
[357254424,1743947471458,-1000.0,0.00069589,40]
[357254425,1743947471482,-1000.0,0.00069726,40]
[357254426,1743947471509,-500.0,0.00069999,120]
[357254427,1743947471536,-289012.83263686,0.0007,120]
[357254428,1743947483337,-500.0,0.00059863,120]
[357254429,1743947483363,-500.0,0.00059863,120]
[357254430,1743947483390,-500.0,0.00059863,120]
[357254431,1743947483417,-500.0,0.00059863,120]
[357254432,1743947483445,-500.0,0.00059863,120]
[357254433,1743947483473,-500.0,0.00059863,120]
[357254434,1743947483497,-298.430489,0.0006,120]
[357254435,1743947483522,-298.430489,0.0006,120]
[357254436,1743947483546,-298.430489,0.0006,120]
[357254437,1743947483570,-298.430489,0.0006,120]
[357254438,1743947483594,-298.430489,0.0006,120]
[357254439,1743947483618,-298.430489,0.0006,120]
[357254440,1743947483645,-298.430489,0.00065,120]
[357254441,1743947483672,-298.430489,0.00065,120]
[357254442,1743947483701,-710987.16736314,0.0007,120]
[357254443,1743947483726,-1663.19,0.0007,120]
[357254444,1743947483750,-231.914525,0.0007,120]
[357254445,1743947483775,-231.914525,0.0007,120]
[357254446,1743947483799,-172.005936,0.0007,120]
[357254447,1743947483823,-172.005936,0.0007,120]
[357254448,1743947483847,-151.0,0.0007,120]
[357254449,1743947483871,-151.0,0.0007,120]
[357254450,1743947483895,-151.0,0.0007,120]
[357254451,1743947483920,-151.0,0.0007,120]
[357254452,1743947483944,-151.0,0.0007,120]
[357254453,1743947483970,-151.0,0.0007,120]
[357254454,1743947483996,-151.0,0.0007,120]
[357254455,1743947484021,-298.430489,0.0007,120]
[357254456,1743947484046,-298.430489,0.0007,120]
[357254457,1743947484073,-500.0,0.00070479,120]
[357254458,1743947484098,-500.0,0.00070479,120]
[357254459,1743947484123,-500.0,0.00070479,120]
[357254460,1743947484148,-210.12,0.00070479,120]
[357254461,1743947484174,-500.0,0.00070479,120]
[357254462,1743947484198,-500.0,0.00070479,120]
[357254463,1743947484224,-1299.53,0.00070958,120]
[357254464,1743947484250,-161.81,0.00071239,120]
[357254465,1743947484276,-500.0,0.00071369,120]
[357254466,1743947484302,-210.12,0.00071849,120]
[357254467,1743947484326,-500.0,0.00072739,120]
[357254468,1743947484351,-500.0,0.00073218,120]
[357254469,1743947484375,-500.0,0.00073218,120]
[357254470,1743947484400,-500.0,0.00073218,120]
[357254471,1743947484424,-210.12,0.00073218,120]
[357254472,1743947484448,-495.52096,0.00073218,120]
[357254473,1743947484473,-500.0,0.00073218,120]
[357254474,1743947484501,-1299.53,0.00073698,120]
[357254475,1743947484655,-152.53,0.00074107,120]
[357254476,1743947484682,-500.0,0.00074109,120]
[357254477,1743947484707,-2000.0,0.0007413,120]
[357254478,1743947484734,-210.12,0.00074588,120]
[357254479,1743947484760,-1000.0,0.00074741,120]
[357254480,1743947484790,-1000000.0,0.00075,120]
[357254481,1743947484816,-231.914525,0.00075,120]
[357254482,1743947484842,-231.914525,0.00075,120]
[357254483,1743947484865,-172.005936,0.00075,120]
[357254484,1743947484890,-172.005936,0.00075,120]
[357254485,1743947484915,-151.0,0.00075,120]
[357254486,1743947484939,-151.0,0.00075,120]
[357254487,1743947484965,-151.0,0.00075,120]
[357254488,1743947484990,-151.0,0.00075,120]
[357254489,1743947485016,-151.0,0.00075,120]
[357254490,1743947485041,-223.84389,0.00075,120]
[357254491,1743947485067,-151.0,0.00075,120]
[357254492,1743947485093,-298.430489,0.00075,120]
[357254493,1743947485117,-298.430489,0.00075,120]
[357254494,1743947485143,-500.0,0.00075479,120]
[357254495,1743947485167,-500.0,0.00075958,120]
[357254496,1743947485192,-500.0,0.00075958,120]
[357254497,1743947485217,-500.0,0.00075958,120]
[357254498,1743947485255,-210.12,0.00075958,120]
[357254499,1743947485282,-500.0,0.00075958,120]
[357254500,1743947485307,-1299.53,0.00076438,120]
[357254501,1743947485333,-164.1,0.000765,60]
[357254502,1743947485358,-500.0,0.00076712,120]
[357254503,1743947485384,-500.0,0.00076712,120]
[357254504,1743947485410,-500.0,0.00076712,120]
[357254505,1743947485436,-515.44816585,0.00076712,120]
[357254506,1743947485461,-500.0,0.00076849,120]
[357254507,1743947485487,-210.12,0.00077328,120]
[357254508,1743947485513,-500.0,0.00078218,120]
[357254509,1743947485538,-500.0,0.00078698,120]
[357254510,1743947485564,-500.0,0.00078698,120]
[357254511,1743947485590,-273.92028572,0.00078698,120]
[357254512,1743947485615,-210.12,0.00078698,120]
[357254513,1743947485643,-1299.53,0.00079177,120]
[357254514,1743947485668,-500.0,0.00079588,120]
[357254515,1743947485693,-1000000.0,0.0007969,120]
[357254516,1743947485720,-231.914525,0.0007969,120]
[357254517,1743947485745,-231.914525,0.0007969,120]
[357254518,1743947485771,-172.005936,0.0007969,120]
[357254519,1743947485796,-172.005936,0.0007969,120]
[357254520,1743947485822,-151.0,0.0007969,120]
[357254521,1743947485848,-151.0,0.0007969,120]
[357254522,1743947485875,-151.0,0.0007969,120]
[357254523,1743947485901,-151.0,0.0007969,120]
[357254524,1743947485927,-151.0,0.0007969,120]
[357254525,1743947485956,-213.545307,0.0007969,120]
[357254526,1743947485984,-298.430489,0.0007969,120]
[357254527,1743947486011,-298.430489,0.0007969,120]
[357254528,1743947486040,-10960.69,0.000797,60]
[357254529,1743947486066,-20666.57263971,0.000798,120]
[357254530,1743947486096,-219033.15177658,0.0008,120]
[357254837,1743947645715,-151.0,0.00045,120]
[357254838,1743947654214,151.0,0.00045,120]
[357254839,1743947816482,-160.0,0.00052,2]
[357254840,1743947821686,-151.0,0.00055836,120]
[357254841,1743947821716,-302.93376614,0.00058356,120]
[357254842,1743947821747,-196.053,0.00059763,2]
[357254843,1743947821776,-1301.6084,0.000599,2]
[357254844,1743947821807,-1437.4168,0.000599,2]
[357254845,1743947821836,-440.13476807,0.00059989,120]
[357254846,1743947821863,-479.98986316,0.00059989,120]
[357254847,1743947821890,-500.0,0.00059989,120]
[357254848,1743947821914,-551.6284774,0.00059989,120]
[357254849,1743947821940,-533.65925363,0.00059989,120]
[357254850,1743947821966,-500.0,0.00059989,120]
[357254851,1743947821991,-500.0,0.00059989,120]
[357254852,1743947822015,-500.97833365,0.00059999,120]
[357254853,1743947822040,-528.17475178,0.00059999,120]
[357254854,1743947822065,-500.00543,0.00059999,120]
[357254855,1743947822090,-150.0,0.00059999,120]
[357254856,1743947822115,-2000.0,0.00059999,2]
[357254857,1743947822141,-601.59,0.00059999,2]
[357254858,1743947822168,-500.0,0.00059999,120]
[357254859,1743947822199,-500.0,0.00059999,120]
[357254860,1743947822228,-492.95,0.00059999,120]
[357254861,1743947822259,-500.0,0.00059999,120]
[357254862,1743947822290,-500.0,0.00059999,120]
[357254863,1743947822315,-151.0,0.0006,120]
[357254864,1743947822341,-151.0,0.0006,120]
[357254865,1743947837838,157.0,0.0005,120]
[357254866,1743947838106,150.0,0.0006,120]
[357254867,1743947841321,185.68989433,0.00059989,120]
[357254868,1743947883639,150.04948533,0.00059989,120]
[357254869,1743947893546,168.01,0.00026849,2]
[357254870,1743947902675,500.0,0.00059989,120]
[357254871,1743947906825,500.0,0.00059889,120]
[357254872,1743947907184,500.0,0.00059889,120]
[357254873,1743947907270,500.0,0.00059989,120]
[357254874,1743947907542,500.0,0.00059989,120]
[357254875,1743947907815,493.37490323,0.00059999,120]
[357254877,1743947953799,523.38508101,0.00059999,120]
[357254878,1743947965687,500.0,0.00059989,120]
[357254879,1743948067208,150.0,0.0006,2]
[357254880,1743948072521,150.0,0.0005,2]
[357254881,1743948098634,367.98112523,0.00059935,2]
[357254882,1743948279218,367.98112524,0.00059953,2]
[357254883,1743948395563,2000.0,0.000599,120]
[357254884,1743948424969,150.0,0.0006,2]
[357254885,1743948426147,-367.98112524,0.0006033,2]
[357254886,1743948426168,-150.0,0.00061369,120]
[357254887,1743948426190,-331.88,0.00061369,2]
[357254888,1743948426212,-678.4011323,0.000619,90]
[357254889,1743948426233,-500.0,0.00062729,120]
[357254890,1743948426255,-500.0,0.00062729,120]
[357254891,1743948426277,-500.0,0.00062729,120]
[357254892,1743948426301,-500.0,0.00062738,120]
[357254893,1743948426324,-114.96995314,0.00062738,120]
[357254894,1743948428280,-385.03004686,0.00062738,120]
[357254895,1743948428306,-500.0,0.00062738,120]
[357254896,1743948428328,-500.0,0.00062738,120]
[357254897,1743948428351,-11.34206347,0.00062738,120]
[357254898,1743948428910,150.0,0.0006,2]
[357254899,1743948443079,-263.53761571,0.00062738,120]
[357254900,1743948443120,-225.12032082,0.00062738,120]
[357254901,1743948443142,-303.45733152,0.00062738,120]
[357254902,1743948443164,-312.72874259,0.00062738,120]
[357254903,1743948564389,-187.27125741,0.00062738,120]
[357254904,1743948564412,-500.0,0.00062738,120]
[357254905,1743948564440,-500.0,0.00062738,120]
[357254906,1743948564463,-137.41979974,0.00062738,120]
[357254918,1743948631567,-362.58020026,0.00062738,120]
[357254919,1743948631577,-500.0,0.00062738,120]
[357254920,1743948631587,-500.0,0.00062738,120]
[357254921,1743948631596,-500.0,0.00062739,2]
[357254922,1743948631605,-255.00578415,0.00062739,2]
[357254923,1743948631615,-470.80401559,0.00062739,2]
[357255005,1743948637430,-644.82859239,0.00062738,120]
[357255006,1743948637439,-29.19598441,0.00062739,2]
[357255007,1743948637448,-48709.51,0.00062739,7]
[357255008,1743948637458,-601.59,0.00062739,2]
[357255009,1743948637467,-500.0,0.00062739,120]
[357255010,1743948637476,-500.0,0.00062739,120]
[357255011,1743948637486,-500.0,0.00062739,120]
[357255012,1743948637495,-592.66315454,0.00062739,120]
[357255013,1743948637504,-160.596,0.00062739,120]
[357255014,1743948637513,-150.99,0.00062739,2]
[357255015,1743948637522,-159.56,0.00062739,2]
[357255016,1743948637531,-155.03,0.00062739,20]
[357255017,1743948637541,-9999.99,0.00062739,2]
[357255018,1743948637550,-151.07,0.00063606,2]
[357255019,1743948637559,-200.0,0.00064194,30]
[357255020,1743948637569,-12721.06357247,0.0006426,2]
[357255021,1743948637578,-645.74,0.0006426,2]
[357255022,1743948637588,-1641.49,0.00064268,2]
[357255023,1743948637597,-151.0,0.00064311,2]
[357255024,1743948637607,-1000.0,0.00064334,120]
[357255025,1743948637616,-156.22,0.00064389,120]
[357255026,1743948637626,-1933.34777405,0.00064899,120]
[357255027,1743948637635,-934.78,0.00064906,2]
[357255028,1743948637645,-155.12,0.00064996,2]
[357255029,1743948637655,-500.0,0.00064999,2]
[357255030,1743948637664,-500.0,0.00064999,2]
[357255031,1743948637673,-500.0,0.00064999,2]
[357255032,1743948637682,-503.05058535,0.00064999,2]
[357255033,1743948637691,-500.0,0.00064999,2]
[357255034,1743948637701,-865.80058078,0.00065,2]
[357255035,1743948637711,-1200.0,0.00065,3]
[357255036,1743948637720,-357.999999,0.00065,10]
[357255037,1743948637731,-150.0,0.00065,2]
[357255038,1743948637740,-373.62,0.00065254,2]
[357255039,1743948637749,-500.0,0.00065378,120]
[357255040,1743948637759,-500.0,0.00065378,120]
[357255041,1743948637769,-500.0,0.00065378,120]
[357255042,1743948637778,-500.0,0.00065378,120]
[357255043,1743948637788,-500.0,0.00065378,120]
[357255044,1743948637797,-500.0,0.00065378,120]
[357255045,1743948637806,-500.0,0.00065378,120]
[357255046,1743948637816,-500.0,0.00065378,120]
[357255048,1743948637826,-269.57601066,0.00065378,120]
[357255050,1743948637835,-1895.0208,0.00065379,2]
[357255052,1743948637845,-190.8924,0.00065379,2]
[357255054,1743948637854,-5456.9649,0.00065379,2]
[357255056,1743948637864,-263.87279748,0.00065379,15]
[357255058,1743948637873,-494.7026,0.00065468,120]
[357255060,1743948637882,-500.0,0.00065468,120]
[357255062,1743948637892,-500.0,0.00065479,2]
[357255064,1743948637901,-48709.51,0.00065479,7]
[357255066,1743948637910,-601.59,0.00065479,2]
[357255068,1743948637920,-500.0,0.00065479,120]
[357255070,1743948637930,-500.0,0.00065479,120]
[357255072,1743948637940,-500.0,0.00065479,120]
[357255074,1743948637949,-260.18,0.00065557,30]
[357255076,1743948637958,-150.0,0.00065619,7]
[357255078,1743948637968,-161.81,0.00065635,120]
[357255081,1743948637990,-200.0,0.00065666,2]
[357255083,1743948638001,-156.78305482,0.0006568,2]
[357255085,1743948638011,-250.0,0.00065739,2]
[357255087,1743948638020,-457.0,0.00066,2]
[357255089,1743948638030,-1240.0,0.00066,4]
[357255091,1743948638041,-198.89,0.00066016,2]
[357255093,1743948638050,-150.0,0.00066042,30]
[357255095,1743948638059,-151.0,0.00066658,120]
[357255097,1743948638069,-457.0,0.00067,2]
[357255099,1743948638079,-500.0,0.00067739,2]
[357255101,1743948638088,-151.07,0.00067907,2]
[357255103,1743948638097,-457.0,0.00068,2]
[357255105,1743948638107,-191.6396,0.00068118,2]
[357255107,1743948638116,-500.0,0.00068208,120]
[357255109,1743948638125,-390.01000323,0.00068218,2]
[357255111,1743948638134,-19984.92241358,0.00068218,7]
[357255130,1743948638392,-387.71394936,0.00068218,7]
[357255131,1743948638404,-309.04528427,0.00068218,7]
[357255132,1743948638416,-313.7982982,0.00068218,7]
[357255133,1743948638428,-2023.3847446,0.00068218,7]
[357255134,1743948638439,-682.61340069,0.00068218,7]
[357255135,1743948638451,-462.88953821,0.00068218,7]
[357255136,1743948638462,-285.34343149,0.00068218,7]
[357255137,1743948638480,-2287.10999979,0.00068218,7]
[357255161,1743948639726,-1991.56028703,0.00068218,7]
[357255162,1743948639856,-256.05102007,0.00068218,7]
[357255174,1743948642973,-15.74919001,0.00068218,7]
[357255175,1743948642988,-3883.54168534,0.00068218,7]
[357255176,1743948643000,-4261.38278022,0.00068218,7]
[357255177,1743948643015,-11564.40397714,0.00068218,7]
[357255178,1743948643024,-601.59,0.00068218,2]
[357255179,1743948643034,-500.0,0.00068218,120]
[357255180,1743948643044,-500.0,0.00068218,120]
[357255181,1743948643053,-495.52096,0.00068218,120]
[357255182,1743948643064,-373.62,0.00068516,2]
[357255183,1743948643073,-151.0,0.00068932,120]
[357255184,1743948643082,-457.0,0.00069,2]
[357255185,1743948643092,-6000.0,0.00069888,120]
[357255186,1743948643101,-500.0,0.00069999,2]
[357255187,1743948643110,-500.0,0.00069999,120]
[357255188,1743948643120,-457.0,0.0007,2]
[357255189,1743948643130,-865.80058078,0.0007,2]
[357255190,1743948643139,-5820.12762208,0.0007,120]
[357255191,1743948643224,-24863.44340622,0.0007,120]
[357255206,1743948645615,-478.4863108,0.0007,120]
[357255207,1743948645724,-788.315381,0.0007,120]
[357255208,1743948645977,-830.59072639,0.0007,120]
[357255209,1743948646079,-822.77272938,0.0007,120]
[357255210,1743948646090,-392.75,0.0007,120]
[357255303,1743948711456,630.61,0.00049636,30]
[357255304,1743948883545,250.0,0.00019,2]
[357255305,1743948916529,156.79,0.00026849,2]
[357255307,1743949509032,26829.0055418,0.0002,2]
[357255308,1743949509061,49840.0,0.0002,2]
[357255309,1743949509089,50000.0,0.0002,2]
[357255310,1743949509119,49698.0,0.0002,2]
[357255311,1743949509148,50000.0,0.0002,2]
[357255312,1743949509175,50000.0,0.0002,2]
[357255313,1743949509201,50000.0,0.0002,2]
[357255314,1743949509228,50000.0,0.0002,2]
[357255315,1743949509260,50000.0,0.0002,2]
[357255316,1743949547096,-225.47906982,0.0001999,2]
[357255317,1743949547119,-1201.51941019,0.0002,2]
[357255318,1743949581112,-1000000.0,0.0002,2]
[357255320,1743949623559,-500000.0,0.0002,2]
[357255321,1743949634896,1469.72083815,0.00015,2]
[357255322,1743949638375,16533.39226986,0.00015,2]
[357255323,1743949639166,-771.21028224,0.0002,2]
[357255324,1743949640142,-554.75728166,0.0002,2]
[357255326,1743949752070,-169.54865262,0.000199,2]
[357255327,1743949752091,-162.41987646,0.000199,2]
[357255328,1743949752112,-501.58752862,0.000199,2]
[357255329,1743949752135,-460.9161423,0.0002,2]
[357255330,1743949758471,-500000.0,0.0002,2]
[357255331,1743949765752,-100000.0,0.0002,2]
[357255332,1743949774092,-7489.64898656,0.0002,2]
[357255366,1743949832013,-1370.50192946,0.0002,2]
[357255367,1743949832106,-501.36406778,0.0002,2]
[357255370,1743949832120,-370.76858744,0.0002,2]
[357255414,1743949837643,-100647.5609821,0.0002,2]
[357255415,1743949837876,-2299.76499765,0.0002,2]
[357255416,1743949837887,-12861.80527831,0.0002,2]
[357255427,1743949839982,-412.98,0.0002,2]
[357255428,1743949839994,-351.22026105,0.0002,2]
[357255429,1743949840340,-10674.31048274,0.0002,2]
[357255430,1743949840352,-719.1,0.0002,2]
[357255454,1743949843281,-26907.63735764,0.0002,2]
[357255461,1743949843340,-504.76511919,0.0002,2]
[357255463,1743949843351,-2436.79189442,0.0002,2]
[357255495,1743949845823,-27.03782625,0.0002,2]
[357255523,1743949846079,-2798.93190234,0.0002,2]
[357255525,1743949846092,-2157.90382398,0.0002,2]
[357255533,1743949846165,-1415.0,0.0002,2]
[357255536,1743949849931,-100000.0,0.0002,2]
[357255537,1743949850617,-100000.0,0.0002,2]
[357255538,1743949850982,-100000.0,0.0002,2]
[357255539,1743949851594,-89177.94713182,0.0002,2]
[357255540,1743949851619,-6264.59265426,0.0002,2]
[357255541,1743949851650,-425.898675,0.0002,4]
[357255543,1743950683981,163.0,0.00039505,120]
[357255544,1743950685967,250.0,0.00019,2]
[357255545,1743950737151,-166.475868,0.00021,2]
[357255546,1743950784813,303.24524766,0.00019949,2]
[357255547,1743950832129,-133.524132,0.00021,2]
[357255548,1743950832152,-350.0,0.00023,2]
[357255549,1743950832176,-167.6651329,0.000232,2]
[357255550,1743950832197,-250.0,0.000236,2]
[357255551,1743950832219,-168.49,0.00026849,2]
[357255552,1743950832240,-328.42802726,0.00033,2]
[357255553,1743950842693,-258.82904718,0.00033,2]
[357255554,1743950842715,-177.22919979,0.000392,2]
[357255555,1743950842735,-1027.097089,0.000393,29]
[357255556,1743950842756,-2137.7888,0.00039405,2]
[357255557,1743950842777,-1893.9511,0.0003941,2]
[357255558,1743950842797,-177.246,0.000395,55]
[357255559,1743950842819,-188.124,0.000395,55]
[357255560,1743950842842,-197.62,0.00039526,2]
[357255561,1743950842862,-197.62,0.00040896,2]
[357255562,1743950842882,-982.7349405,0.00041,5]
[357255563,1743950842904,-500.0,0.00041096,31]
[357255564,1743950842925,-500.0,0.00041096,31]
[357255565,1743950842946,-500.0,0.00041096,31]
[357255566,1743950842967,-500.0,0.00041096,31]
[357255567,1743950842988,-500.0,0.00041096,31]
[357255568,1743950843009,-500.0,0.00041096,31]
[357255569,1743950843033,-500.0,0.00041096,31]
[357255570,1743950843054,-500.0,0.00041096,31]
[357255571,1743950843075,-500.0,0.00041096,31]
[357255572,1743950843096,-500.0,0.00041096,31]
[357255573,1743950843116,-307.88423498,0.00041096,31]
[357255574,1743950843137,-500.0,0.00041096,31]
[357255575,1743950843158,-500.0,0.00041096,31]
[357255576,1743950843179,-500.0,0.00041096,31]
[357255577,1743950843202,-500.0,0.00041096,31]
[357255578,1743950843224,-500.0,0.00041096,31]
[357255579,1743950843246,-500.0,0.00041096,31]
[357255580,1743950843267,-158.93319114,0.00041096,31]
[357255581,1743950845087,-341.06680886,0.00041096,31]
[357255582,1743950845110,-296.26391883,0.00041096,31]
[357255583,1743950949098,-755.7272187,0.00039405,2]
[357255625,1743951037804,-1092.7323813,0.00039405,2]
[357255627,1743951037815,-157.69454689,0.00039405,2]
[357255629,1743951037825,-86318.60416511,0.00039505,2]
[357255630,1743951037834,-6785.15527976,0.00039505,2]
[357255797,1743951040431,-491.06163634,0.00039505,2]
[357255799,1743951040443,-9047.17398931,0.00039505,2]
[357255801,1743951040453,-912.70804093,0.00039505,2]
[357255803,1743951040463,-463.0061826,0.00039505,2]
[357255805,1743951040473,-150.02990309,0.0004035,5]
[357255807,1743951040484,-500.0,0.00041096,31]
[357255809,1743951040494,-352.43185857,0.00041096,31]
[357255899,1743951043615,-147.56814143,0.00041096,31]
[357255900,1743951043625,-500.0,0.00041096,31]
[357255901,1743951043634,-500.0,0.00041096,31]
[357255902,1743951043644,-500.0,0.00041096,31]
[357255903,1743951043653,-500.0,0.00041096,31]
[357255904,1743951043662,-500.0,0.00041096,31]
[357255906,1743951043671,-500.0,0.00041096,31]
[357255907,1743951043681,-500.0,0.00041096,31]
[357255908,1743951043690,-372.99193665,0.00041096,31]
[357255909,1743951043699,-500.0,0.00041096,31]
[357255910,1743951043709,-500.0,0.00041096,31]
[357255911,1743951043719,-500.0,0.00041096,31]
[357255912,1743951043730,-500.0,0.00041096,31]
[357255913,1743951043741,-197.62,0.00042266,120]
[357255914,1743951043750,-161.15,0.00042367,2]
[357255915,1743951043759,-197.62,0.00043636,120]
[357255916,1743951043771,-150.0,0.00044871,7]
[357255917,1743951043781,-317.65631598,0.00045,2]
[357255918,1743951043791,-197.62,0.00045006,120]
[357255919,1743951043802,-3295.72,0.00045006,2]
[357255920,1743951043812,-224.17,0.00045642,2]
[357255921,1743951043821,-1000.0,0.00046139,2]
[357255922,1743951043831,-197.62,0.00046375,120]
[357255923,1743951043840,-221.92831305,0.00047,14]
[357255924,1743951043852,-161.15,0.00047146,2]
[357255925,1743951043862,-29962.36,0.00047185,2]
[357255926,1743951043871,-197.62,0.00047745,120]
[357255927,1743951043880,-224.17,0.00047924,2]
[357255928,1743951043890,-576.0788265,0.00048,120]
[357255929,1743951043899,-18012.40228279,0.00048106,2]
[357255934,1743951046036,-5887.59771721,0.00048106,2]
[357255936,1743951046047,-197.62,0.00049115,120]
[357255938,1743951046057,-2153.72167768,0.000495,7]
[357255941,1743951046539,-5834.89759597,0.000495,7]
[357255946,1743951948139,-156.79,0.00026849,2]
[357255947,1743951948160,-433.0,0.000359,2]
[357255948,1743951948183,-850.90731469,0.000368,29]
[357255949,1743952033118,-1109.65176131,0.000368,29]
[357255950,1743952033140,-171.04699373,0.000371,2]
[357255951,1743952033165,-1500.0,0.000373,29]
[357255952,1743952033191,-880.82834215,0.000377,2]
[357255953,1743952033215,-1188.21544991,0.000378,29]
[357255954,1743952037102,-311.78455009,0.000378,29]
[357255955,1743952037127,-1084.62840363,0.000383,29]
[357255957,1743952043097,-244.52409895,0.000383,29]
[357255958,1743952046103,-170.84749742,0.000383,29]
[357255959,1743952046124,-726.16398549,0.00038498,7]
[357255960,1743952052082,-184.68874251,0.00038498,7]
[357255961,1743952052104,-116.24116752,0.000388,29]
[357255963,1743952172152,-771.1502,0.000382,2]
[357255964,1743952172174,-527.04703601,0.000393,29]
[357255987,1743952232320,-2356.71179599,0.000393,29]
[357255988,1743952232330,-169.49,0.00039913,2]
[357255989,1743952232340,-331.88,0.00039913,2]
[357255990,1743952232349,-1000.0,0.00041096,90]
[357255991,1743952232359,-1000.0,0.00041096,90]
[357255992,1743952232369,-1000.0,0.00041096,90]
[357255993,1743952232379,-471.0,0.00041096,90]
[357255994,1743952232388,-1259.0,0.000449,3]
[357255995,1743952232398,-151.0,0.00045,120]
[357255996,1743952232407,-151.0,0.00045,120]
[357255997,1743952232417,-156.22,0.00046304,120]
[357255998,1743952232427,-5556.0,0.000464,5]
[357255999,1743952232436,-250.0,0.0004665,120]
[357256000,1743952232446,-8144.63940803,0.00047305,2]
[357256006,1743952238165,-15755.36059197,0.00047305,2]
[357256007,1743952238175,-150.0,0.00047484,7]
[357256008,1743952238185,-844.25,0.00047581,2]
[357256009,1743952238195,-1000.0,0.00047859,2]
[357256010,1743952238205,-1236.7236,0.00047896,2]
[357256011,1743952238214,-367.98112524,0.00047898,2]
[357256012,1743952238223,-237.48551775,0.00047898,15]
[357256013,1743952238233,-1094.0,0.000479,2]
[357256014,1743952238242,-196.053,0.00047906,2]
[357256015,1743952238251,-215.99,0.00047927,2]
[357256016,1743952238261,-846.4713101,0.00047948,20]
[357256017,1743952238271,-425.31,0.00047982,2]
[357256018,1743952238280,-182.619,0.00047995,82]
[357256019,1743952238290,-160.633,0.00047995,82]
[357256020,1743952238299,-124919.197576,0.00047996,4]
[357256021,1743952238308,-150.35,0.00047996,2]
[357256022,1743952238318,-162.41987644,0.00047998,15]
[357256023,1743952238327,-500.0,0.00048005,120]
[357256024,1743952238336,-514.74220784,0.00048005,120]
[357256025,1743952238346,-500.0,0.00048005,120]
[357256026,1743952238356,-500.0,0.00048005,120]
[357256027,1743952238366,-500.0,0.00048005,120]
[357256028,1743952238375,-500.0,0.00048005,120]
[357256029,1743952238385,-500.0,0.00048005,120]
[357256030,1743952238394,-500.0,0.00048005,120]
[357256031,1743952238403,-500.0,0.00048005,120]
[357256032,1743952238413,-652.85861985,0.00048006,12]
[357256033,1743952238422,-14665.72816791,0.00048006,12]